fUST/lending_fUST_20241008
["ID","MTS","AMOUNT","RATE_DAILY","PERIOD"]
[340017121,1728334243495,-558.741586,0.0003383,14]
[340017124,1728334243505,-266.272967,0.0003383,14]
[340017126,1728334243514,-266.272972,0.0003383,14]
[340017127,1728334243523,-208.466311,0.0003383,14]
[340017129,1728334243533,-208.466311,0.0003383,14]
[340017131,1728334243543,-624.43809,0.0003383,14]
[340017133,1728334243552,-624.43808002,0.0003383,14]
[340017135,1728334243562,-151.0,0.0003383,14]
[340017137,1728334243572,-265.938496,0.0003383,14]
[340017139,1728334243581,-265.938504,0.0003383,14]
[340017141,1728334243590,-151.0,0.0003383,14]
[340017143,1728334243599,-407.346544,0.0003383,14]
[340017145,1728334243609,-407.346534,0.0003383,14]
[340017148,1728334243619,-363.823278,0.0003383,14]
[340017150,1728334243628,-363.823278,0.0003383,14]
[340017152,1728334243637,-1069.19422,0.0003383,14]
[340017154,1728334243649,-1069.19422,0.0003383,14]
[340017156,1728334243659,-1069.19422,0.0003383,14]
[340017158,1728334243669,-1069.19421,0.0003383,14]
[340017160,1728334243678,-437.20592969,0.0003383,2]
[340017162,1728334243687,-223.32526643,0.0003383,2]
[340017164,1728334243696,-3058.25123653,0.0003383,2]
[340017166,1728334243705,-10056.96108159,0.0003383,2]
[340017168,1728334243715,-1018.67586569,0.0003383,2]
[340017169,1728334243724,-153826.5074295,0.0003383,2]
[340017171,1728334243733,-18093.57337867,0.0003383,2]
[340017174,1728334243743,-904.7678935,0.0003383,2]
[340017176,1728334243752,-175.44166556,0.0003383,2]
[340017178,1728334243761,-458.51768464,0.0003383,2]
[340017180,1728334243770,-222.47710005,0.0003383,2]
[340017182,1728334243780,-886.319,0.0003383,2]
[340017184,1728334243789,-2743.46695423,0.0003383,4]
[340017185,1728334243798,-500.0,0.0003383,2]
[340017187,1728334243807,-3354.00093362,0.0003383,2]
[340017189,1728334243817,-293.95,0.0003383,3]
[340017191,1728334243826,-192438.90706757,0.0003383,5]
[340017193,1728334243835,-1517.61435914,0.0003383,2]
[340017195,1728334243844,-700000.0,0.0003383,20]
[340017197,1728334243853,-1523.49084475,0.0003383,2]
[340017199,1728334243862,-205214.78899855,0.0003383,15]
[340017201,1728334243871,-830.61018429,0.0003383,2]
[340017203,1728334243881,-5491.54772709,0.0003383,5]
[340017205,1728334243890,-46243.5748894,0.0003383,4]
[340017207,1728334243900,-3925.61561464,0.0003383,20]
[340017209,1728334243909,-15000.0,0.0003383,2]
[340017211,1728334243920,-500.0,0.0003383,2]
[340017214,1728334243931,-500.0,0.0003383,2]
[340017216,1728334243940,-238.0,0.0003383,2]
[340017218,1728334243950,-414792.76755846,0.0003383,7]
[340017220,1728334243960,-150.0,0.0003383,14]
[340017221,1728334243969,-150.0,0.0003383,14]
[340017224,1728334243979,-200.0,0.0003383,14]
[340017225,1728334243988,-197.47117282,0.0003383,3]
[340017228,1728334243998,-185.0,0.0003383,30]
[340017229,1728334244007,-3000.0,0.0003383,111]
[340017231,1728334244016,-1352.89263378,0.0003383,120]
[340017233,1728334244026,-1772.90165342,0.0003383,30]
[340017235,1728334244035,-1177.13730941,0.0003383,120]
[340017237,1728334244044,-3023.47544409,0.0003383,2]
[340017239,1728334244053,-89286.09709288,0.0003383,2]
[340017241,1728334244062,-300.0,0.0003383,2]
[340017243,1728334244071,-793.49236145,0.0003383,2]
[340017245,1728334244081,-6449.48175374,0.0003383,2]
[340017247,1728334244090,-242.90366121,0.0003383,120]
[340017249,1728334244102,-514.28585702,0.0003383,2]
[340017251,1728334244112,-291.04851929,0.0003383,2]
[340017253,1728334244121,-4151.62440458,0.0003383,2]
[340017255,1728334244130,-1428.78348778,0.0003383,120]
[340017257,1728334244140,-320.44109479,0.0003383,2]
[340017259,1728334244150,-781.48588165,0.0003383,30]
[340017261,1728334244159,-1185.40380237,0.0003383,2]
[340017263,1728334244173,-285.91845443,0.0003383,2]
[340017265,1728334244182,-50701.97608377,0.0003383,2]
[340017267,1728334244192,-4122.40884287,0.0003383,2]
[340017269,1728334244201,-10101.47226001,0.0003383,2]
[340017271,1728334244211,-1202.70785079,0.0003383,60]
[340017273,1728334244220,-276.403288,0.0003383,30]
[340017275,1728334244231,-9834.75750596,0.0003383,2]
[340017277,1728334244242,-1161.48784954,0.0003383,2]
[340017279,1728334244251,-154.35214013,0.0003383,2]
[340017281,1728334244261,-173.32657258,0.0003383,2]
[340017284,1728334244271,-20823.22390697,0.0003383,2]
[340017286,1728334244283,-15318.32063213,0.0003383,2]
[340017288,1728334244294,-194.00418287,0.0003383,120]
[340017290,1728334244304,-238.00172731,0.0003383,30]
[340017292,1728334244314,-1037.81119778,0.0003383,120]
[340017294,1728334244323,-241.53282588,0.0003383,120]
[340017296,1728334244333,-1761.77074032,0.0003383,120]
[340017298,1728334244344,-928.20206548,0.0003383,30]
[340017300,1728334244354,-3000.0,0.0003383,108]
[340017303,1728334244366,-1480.0,0.0003383,2]
[340017305,1728334244377,-200.0,0.0003383,2]
[340017307,1728334244388,-242.59,0.0003383,120]
[340017309,1728334244400,-200.0,0.0003383,2]
[340017311,1728334244410,-955.68072545,0.0003383,2]
[340017314,1728334244420,-1000.0,0.0003383,120]
[340017315,1728334244429,-978.0,0.0003383,60]
[340017317,1728334244438,-10000.0,0.0003383,7]
[340017319,1728334244447,-163.34120225,0.0003383,2]
[340017321,1728334244457,-4945.13943325,0.0003383,35]
[340017323,1728334244466,-433.32,0.0003383,120]
[340017325,1728334244475,-250.0,0.0003383,30]
[340017328,1728334244484,-250.0,0.0003383,30]
[340017330,1728334244494,-250.0,0.0003383,30]
[340017332,1728334244503,-250.0,0.0003383,30]
[340017334,1728334244512,-250.0,0.0003383,30]
[340017336,1728334244522,-250.0,0.0003383,30]
[340017337,1728334244531,-250.0,0.0003383,30]
[340017339,1728334244541,-250.0,0.0003383,30]
[340017351,1728334244646,-250.0,0.0003383,30]
[340017354,1728334244656,-250.0,0.0003383,30]
[340017356,1728334244666,-250.0,0.0003383,30]
[340017358,1728334244676,-250.0,0.0003383,30]
[340017360,1728334244685,-150.0,0.0003383,30]
[340017361,1728334244693,-168.210134,0.0003383,30]
[340017363,1728334244702,-397.22928729,0.0003383,30]
[340017365,1728334244711,-1462.27,0.0003385,120]
[340017367,1728334244720,-615.35995357,0.00033873,5]
[340017369,1728334244729,-601.2133116,0.00033873,5]
[340017371,1728334244739,-167.52621936,0.00033873,5]
[340017373,1728334244748,-362.97910492,0.00033873,5]
[340017375,1728334244758,-157.90704959,0.00033873,5]
[340017377,1728334244767,-500.0,0.00033873,5]
[340017379,1728334244776,-500.0,0.00033873,5]
[340017381,1728334244786,-500.14564129,0.00033873,5]
[340017383,1728334244795,-500.0,0.00033873,5]
[340017385,1728334244805,-301.41128147,0.00033873,5]
[340017388,1728334244814,-501.65268604,0.00033873,5]
[340017390,1728334244823,-500.0,0.00033873,5]
[340017392,1728334244833,-500.0,0.00033873,5]
[340017394,1728334244842,-500.46052791,0.00033873,5]
[340017396,1728334244852,-47756.07,0.000339,14]
[340017398,1728334244861,-500.0,0.00033973,5]
[340017400,1728334244870,-530.12825592,0.00034,5]
[340017402,1728334244881,-355162.39321068,0.00034,21]
[340017404,1728334244890,-400.0,0.00034,120]
[340017406,1728334244900,-250.0,0.00034,120]
[340017408,1728334244909,-250.0,0.00034,30]
[340017410,1728334244919,-500.0,0.0003404,2]
[340017411,1728334244930,-587.0,0.0003437,2]
[340017414,1728334244940,-863.9455592,0.00034457,47]
[340017416,1728334244949,-500.0,0.00034481,5]
[340017417,1728334244958,-153.0,0.00034521,2]
[340017419,1728334244968,-7692.07458484,0.00034538,2]
[340017421,1728334244978,-1000.0,0.00034542,5]
[340017423,1728334244987,-500.0,0.00034588,2]
[340017425,1728334244997,-3453.78,0.000347,14]
[340017427,1728334245006,-103903.74,0.000347,14]
[340017429,1728334245015,-150.0,0.00034705,120]
[340017431,1728334245024,-1300.3180624,0.00034728,12]
[340017433,1728334245034,-500.0,0.00034733,2]
[340017435,1728334245043,-500.0,0.00034733,5]
[340017437,1728334245053,-500.0,0.00034733,5]
[340017439,1728334245062,-160.0,0.000348,3]
[340017441,1728334245071,-1000.0,0.000348,3]
[340017443,1728334245081,-1000.0,0.000348,3]
[340017445,1728334245091,-1000.0,0.000348,3]
[340017447,1728334245103,-1000.0,0.000348,3]
[340017449,1728334245113,-1000.0,0.000348,3]
[340017452,1728334245123,-363.11,0.000348,30]
[340017454,1728334245133,-702.0,0.0003483,30]
[340017456,1728334245142,-200.0,0.0003483,2]
[340017458,1728334245152,-629.16461442,0.00034942,5]
[340017460,1728334245161,-10433.70262892,0.00035,2]
[340017462,1728334245169,-10179.5708583,0.00035,14]
[340017464,1728334245179,-2000.0,0.00035,2]
[340017466,1728334245189,-554.92199552,0.00035,7]
[340017467,1728334245198,-560.9057208,0.00035,120]
[340017469,1728334245208,-167.65477431,0.00035,120]
[340017472,1728334245218,-5546.38,0.00035,120]
[340017474,1728334245228,-200.0,0.00035,120]
[340017476,1728334245237,-1331.73525103,0.00035,7]
[340017478,1728334245246,-1331.73525103,0.00035,7]
[340017480,1728334245255,-500.0,0.00035136,2]
[340017482,1728334245264,-157.89513854,0.00035136,120]
[340017484,1728334245273,-157.89513854,0.00035136,120]
[340017486,1728334245282,-47756.07,0.000352,14]
[340017488,1728334245292,-1000.0,0.00035242,5]
[340017490,1728334245302,-199.38362459,0.00035242,5]
[340017492,1728334245311,-539.43495302,0.00035242,5]
[340017494,1728334245320,-876.09546609,0.00035242,5]
[340017496,1728334245330,-175.90092739,0.00035242,5]
[340017498,1728334245339,-1000.0,0.00035342,5]
[340017500,1728334245348,-12668.05744295,0.0003548,3]
[340017502,1728334245358,-1837.2,0.00035616,120]
[340017504,1728334245367,-400.0,0.00035616,60]
[340017506,1728334245376,-500.0,0.00035684,2]
[340017508,1728334245385,-167.46,0.00035973,5]
[340017510,1728334245394,-150.0,0.00035973,5]
[340017512,1728334245404,-16053.42665907,0.00035988,2]
[340017514,1728334245413,-2000.0,0.00036,7]
[340017516,1728334245423,-301349.94,0.00036,14]
[340017517,1728334245432,-333.79289233,0.00036,30]
[340017518,1728334245441,-250.0,0.00036,120]
[340017519,1728334245450,-250.0,0.00036,30]
[340017521,1728334245459,-229.0,0.00036,2]
[340017523,1728334245468,-229.0,0.00036,2]
[340017525,1728334245477,-229.0,0.00036,2]
[340017527,1728334245486,-7692.07458484,0.00036083,2]
[340017529,1728334245495,-124078.035281,0.0003615,8]
[340017531,1728334245504,-3453.78,0.000362,14]
[340017533,1728334245513,-103903.74,0.000362,14]
[340017535,1728334245523,-500.0,0.00036232,2]
[340017537,1728334245533,-259.21684264,0.0003624,2]
[340017539,1728334245542,-363.11,0.000363,30]
[340017541,1728334245551,-377.31618254,0.000365,120]
[340017543,1728334245560,-250.0,0.00036521,5]
[340017545,1728334245569,-426.77551669,0.00036546,5]
[340017547,1728334245578,-1837.2,0.00036575,120]
[340017549,1728334245588,-478.0,0.0003666,120]
[340017551,1728334245598,-47756.07,0.000367,14]
[340017553,1728334245609,-500.0,0.00036779,2]
[340017555,1728334245620,-207.855109,0.00036787,2]
[340017557,1728334245630,-152.0,0.00036977,15]
[340017559,1728334245641,-198.43406114,0.00036986,60]
[340017562,1728334245653,-413.85295041,0.00037068,5]
[340017564,1728334245664,-150.0,0.000371,2]
[340017566,1728334245674,-1331.73525103,0.000371,7]
[340017568,1728334245684,-1332.26741307,0.000371,7]
[340017570,1728334245694,-382.21046586,0.00037246,5]
[340017572,1728334245705,-500.0,0.00037327,2]
[340017574,1728334245717,-153.49604897,0.00037346,5]
[340017577,1728334245729,-3453.78,0.000374,14]
[340017579,1728334245739,-103903.74,0.000374,14]
[340017581,1728334245748,-152.0,0.00037491,15]
[340017583,1728334245758,-1021.76842016,0.000375,2]
[340017585,1728334245768,-5000.0,0.000375,40]
[340017587,1728334245780,-363.11,0.000375,30]
[340017589,1728334245791,-1837.2,0.00037534,120]
[340017592,1728334245802,-7692.07458484,0.00037629,2]
[340017594,1728334245814,-1000.0,0.0003765,120]
[340017596,1728334245825,-500.0,0.00037875,2]
[340017598,1728334245835,-650.13435613,0.00038,10]
[340017600,1728334245846,-857.51223041,0.00038,120]
[340017603,1728334245858,-250.0,0.00038,120]
[340017605,1728334245867,-5090.12745488,0.00038,14]
[340017607,1728334245877,-1000.0,0.00038,120]
[340017609,1728334245887,-250.0,0.00038,30]
[340017611,1728334245900,-152.0,0.00038006,15]
[340017614,1728334245911,-47756.07,0.000381,14]
[340017616,1728334245923,-150.0,0.00038306,120]
[340017618,1728334245933,-1557.94,0.00038356,120]
[340017620,1728334245942,-3313.13409091,0.00038356,7]
[340017622,1728334245951,-500.0,0.00038356,120]
[340017624,1728334245960,-509.95926326,0.00038356,120]
[340017626,1728334245970,-500.0,0.00038356,120]
[340017629,1728334245980,-500.61290658,0.00038356,120]
[340017631,1728334245990,-500.0,0.00038356,120]
[340017634,1728334246001,-500.0,0.00038356,120]
[340017637,1728334246012,-500.0,0.00038356,120]
[340017639,1728334246023,-500.0,0.00038356,120]
[340017641,1728334246035,-500.12987693,0.00038356,120]
[340017643,1728334246044,-639.36640097,0.00038356,120]
[340017645,1728334246053,-500.0,0.00038356,120]
[340017647,1728334246063,-500.0,0.00038356,120]
[340017649,1728334246072,-500.0,0.00038356,120]
[340017651,1728334246081,-500.0,0.00038356,120]
[340017653,1728334246090,-500.0,0.00038356,120]
[340017655,1728334246103,-500.0,0.00038356,120]
[340017657,1728334246113,-500.0,0.00038356,120]
[340017659,1728334246122,-878.3,0.00038356,120]
[340017661,1728334246131,-500.3803449,0.00038356,120]
[340017664,1728334246142,-500.0,0.00038356,120]
[340017666,1728334246152,-500.0,0.00038356,120]
[340017668,1728334246160,-500.0,0.00038356,120]
[340017670,1728334246171,-267.7140085,0.00038356,120]
[340017672,1728334246185,-500.3957064,0.00038356,120]
[340017673,1728334246195,-500.0,0.00038356,120]
[340017676,1728334246204,-500.0,0.00038356,120]
[340017678,1728334246213,-500.0,0.00038356,120]
[340017679,1728334246222,-545.39,0.00038356,120]
[340017681,1728334246231,-500.0,0.00038356,120]
[340017684,1728334246240,-603.96,0.00038356,120]
[340017686,1728334246250,-500.0,0.00038356,120]
[340017688,1728334246260,-500.0,0.00038356,120]
[340017690,1728334246269,-500.41234844,0.00038356,120]
[340017701,1728334246278,-500.0,0.00038356,120]
[340017704,1728334246380,-500.30372551,0.00038356,120]
[340017705,1728334246389,-500.0,0.00038356,120]
[340017708,1728334246398,-500.0,0.00038356,120]
[340017710,1728334246408,-500.0,0.00038356,120]
[340017711,1728334246418,-500.0,0.00038356,120]
[340017713,1728334246427,-500.0,0.00038356,120]
[340017715,1728334246436,-500.0,0.00038356,120]
[340017717,1728334246445,-1229.97,0.00038356,2]
[340017719,1728334246454,-1229.97,0.00038356,2]
[340017721,1728334246464,-1229.97,0.00038356,2]
[340017723,1728334246474,-500.0,0.00038356,120]
[340017725,1728334246483,-1229.97,0.00038356,2]
[340017727,1728334246492,-536.93651858,0.00038356,120]
[340017729,1728334246501,-1229.97,0.00038356,2]
[340017731,1728334246510,-1229.97,0.00038356,2]
[340017733,1728334246519,-1229.97,0.00038356,2]
[340017735,1728334246529,-1229.97,0.00038356,2]
[340017737,1728334246539,-1229.97,0.00038356,2]
[340017739,1728334246549,-1229.97,0.00038356,2]
[340017741,1728334246558,-1229.97,0.00038356,2]
[340017743,1728334246567,-1229.97,0.00038356,2]
[340017745,1728334246576,-500.0,0.00038356,120]
[340017747,1728334246585,-1229.97,0.00038356,2]
[340017749,1728334246594,-1229.97,0.00038356,2]
[340017751,1728334246603,-1229.97,0.00038356,2]
[340017753,1728334246612,-1229.97,0.00038356,2]
[340017755,1728334246621,-1229.97,0.00038356,2]
[340017757,1728334246630,-500.0,0.00038356,120]
[340017759,1728334246639,-1229.97,0.00038356,2]
[340017761,1728334246649,-1229.97,0.00038356,2]
[340017763,1728334246658,-1229.97,0.00038356,2]
[340017765,1728334246667,-1229.97,0.00038356,2]
[340017767,1728334246677,-1229.97,0.00038356,2]
[340017769,1728334246686,-500.0,0.00038356,120]
[340017771,1728334246696,-1229.97,0.00038356,2]
[340017773,1728334246705,-1229.98260181,0.00038356,2]
[340017775,1728334246714,-500.0,0.00038356,120]
[340017777,1728334246723,-500.0,0.00038356,120]
[340017779,1728334246732,-500.0,0.00038356,120]
[340017781,1728334246741,-629.27238556,0.00038356,120]
[340017783,1728334246751,-500.0,0.00038356,120]
[340017785,1728334246760,-500.0,0.00038356,120]
[340017787,1728334246769,-500.0,0.00038356,120]
[340017789,1728334246778,-292.7134528,0.00038356,120]
[340017791,1728334246788,-500.0,0.00038356,90]
[340017793,1728334246797,-500.0,0.00038356,120]
[340017795,1728334246806,-500.0,0.00038356,120]
[340017797,1728334246815,-576.49441869,0.00038356,120]
[340017799,1728334246824,-500.0,0.00038356,120]
[340017801,1728334246833,-500.0,0.00038356,120]
[340017803,1728334246842,-500.0,0.00038356,120]
[340017805,1728334246850,-500.0,0.00038356,120]
[340017807,1728334246860,-500.0,0.00038356,120]
[340017809,1728334246869,-500.0,0.00038356,120]
[340017810,1728334246877,-800.19,0.00038356,120]
[340017812,1728334246886,-500.0,0.00038356,120]
[340017814,1728334246895,-269.26996128,0.00038356,120]
[340017816,1728334246904,-500.0,0.00038356,120]
[340017818,1728334246913,-500.0,0.00038356,120]
[340017820,1728334246923,-500.0,0.00038356,120]
[340017823,1728334246934,-500.16909179,0.00038356,120]
[340017825,1728334246944,-500.0,0.00038356,120]
[340017827,1728334246954,-500.0,0.00038356,120]
[340017829,1728334246964,-500.0,0.00038356,120]
[340017831,1728334246974,-751.04,0.00038356,120]
[340017833,1728334246984,-500.0,0.00038356,7]
[340017835,1728334246994,-455.03273973,0.00038356,120]
[340017837,1728334247005,-500.0,0.00038356,120]
[340017839,1728334247015,-500.0,0.00038356,120]
[340017841,1728334247025,-500.0,0.00038356,120]
[340017843,1728334247036,-500.0,0.00038356,120]
[340017845,1728334247046,-500.0,0.00038356,120]
[340017847,1728334247056,-512.95387059,0.00038356,120]
[340017850,1728334247067,-428.71362626,0.00038356,120]
[340017852,1728334247076,-500.0,0.00038356,120]
[340017854,1728334247087,-500.0,0.00038356,120]
[340017856,1728334247099,-500.0,0.00038356,120]
[340017858,1728334247109,-500.0,0.00038356,120]
[340017860,1728334247119,-500.0,0.00038356,120]
[340017862,1728334247132,-500.0,0.00038356,120]
[340017864,1728334247143,-500.0,0.00038356,120]
[340017866,1728334247155,-841.21,0.00038356,120]
[340017868,1728334247165,-500.0,0.00038356,120]
[340017871,1728334247177,-500.0,0.00038356,120]
[340017873,1728334247189,-500.0,0.00038356,120]
[340017875,1728334247200,-500.0,0.00038356,120]
[340017877,1728334247210,-500.0,0.00038356,120]
[340017879,1728334247220,-500.0,0.00038356,120]
[340017881,1728334247230,-500.0,0.00038356,20]
[340017883,1728334247240,-500.0,0.00038356,120]
[340017885,1728334247251,-500.0,0.00038356,120]
[340017887,1728334247262,-222.68184621,0.00038356,120]
[340017889,1728334247274,-500.0,0.00038356,60]
[340017891,1728334247283,-500.0,0.00038356,120]
[340017893,1728334247295,-500.0,0.00038356,120]
[340017895,1728334247305,-500.0,0.00038356,120]
[340017898,1728334247316,-500.0,0.00038356,120]
[340017900,1728334247326,-500.0,0.00038356,120]
[340017902,1728334247336,-500.0,0.00038356,120]
[340017904,1728334247348,-500.0,0.00038356,120]
[340017906,1728334247359,-500.0,0.00038356,120]
[340017908,1728334247368,-500.0,0.00038356,120]
[340017910,1728334247378,-500.0,0.00038356,7]
[340017912,1728334247387,-500.0,0.00038356,120]
[340017914,1728334247396,-500.0,0.00038356,120]
[340017916,1728334247405,-500.0,0.00038356,120]
[340017918,1728334247415,-500.0,0.00038356,10]
[340017920,1728334247427,-500.0,0.00038356,120]
[340017922,1728334247436,-500.0,0.00038356,120]
[340017924,1728334247446,-500.0,0.00038356,120]
[340017926,1728334247455,-500.0,0.00038356,30]
[340017928,1728334247466,-500.0,0.00038356,120]
[340017930,1728334247476,-500.0,0.00038356,120]
[340017932,1728334247486,-612.78,0.00038356,120]
[340017934,1728334247495,-500.0,0.00038356,120]
[340017936,1728334247504,-256.31520485,0.00038356,120]
[340017938,1728334247514,-500.0,0.00038356,120]
[340017940,1728334247523,-500.0,0.00038356,120]
[340017942,1728334247532,-500.0,0.00038356,120]
[340017944,1728334247542,-500.0,0.00038356,120]
[340017946,1728334247552,-500.0,0.00038356,120]
[340017948,1728334247562,-500.0,0.00038356,120]
[340017950,1728334247570,-500.0,0.00038356,120]
[340017952,1728334247580,-502.29663449,0.00038356,120]
[340017954,1728334247589,-500.0,0.00038356,120]
[340017956,1728334247598,-523.86374321,0.00038356,120]
[340017958,1728334247608,-500.0,0.00038356,120]
[340017960,1728334247617,-589.28,0.00038356,120]
[340017962,1728334247627,-500.0,0.00038356,120]
[340017964,1728334247636,-500.0,0.00038356,120]
[340017966,1728334247645,-500.0,0.00038356,120]
[340017968,1728334247654,-500.0,0.00038356,120]
[340017970,1728334247665,-557.3,0.00038356,120]
[340017972,1728334247677,-500.0,0.00038356,120]
[340017973,1728334247685,-500.0,0.00038356,120]
[340017976,1728334247695,-500.0,0.00038356,120]
[340017978,1728334247705,-500.0,0.00038356,120]
[340017980,1728334247717,-500.0,0.00038356,120]
[340017982,1728334247728,-500.0,0.00038356,120]
[340017984,1728334247739,-500.0,0.00038356,120]
[340017986,1728334247752,-500.19929206,0.00038356,120]
[340017988,1728334247762,-610.01925777,0.00038356,120]
[340017990,1728334247773,-500.0,0.00038356,120]
[340017992,1728334247783,-500.0,0.00038356,120]
[340017994,1728334247793,-500.0,0.00038356,120]
[340017996,1728334247803,-505.20463472,0.00038356,120]
[340017998,1728334247813,-500.0,0.00038356,120]
[340018000,1728334247823,-500.0,0.00038356,120]
[340018002,1728334247833,-500.0,0.00038356,120]
[340018004,1728334247843,-500.0,0.00038356,120]
[340018006,1728334247855,-500.0,0.00038356,120]
[340018008,1728334247865,-500.0,0.00038356,120]
[340018010,1728334247875,-500.0,0.00038356,120]
[340018012,1728334247885,-500.0,0.00038356,120]
[340018023,1728334247985,-500.0,0.00038356,120]
[340018025,1728334247996,-500.0,0.00038356,7]
[340018027,1728334248007,-500.0,0.00038356,120]
[340018029,1728334248016,-500.0,0.00038356,120]
[340018031,1728334248026,-500.0,0.00038356,120]
[340018033,1728334248038,-500.0,0.00038356,120]
[340018035,1728334248047,-500.0,0.00038356,120]
[340018037,1728334248058,-209.96565606,0.00038356,120]
[340018039,1728334248068,-500.0,0.00038356,120]
[340018042,1728334248079,-500.0,0.00038356,120]
[340018043,1728334248089,-500.0,0.00038356,120]
[340018045,1728334248100,-319.55761693,0.00038356,120]
[340018047,1728334248112,-500.0,0.00038356,120]
[340018049,1728334248122,-500.0,0.00038356,120]
[340018051,1728334248132,-949.88,0.00038356,120]
[340018053,1728334248143,-660.6,0.00038356,120]
[340018055,1728334248154,-500.0,0.00038356,120]
[340018057,1728334248163,-500.0,0.00038356,120]
[340018059,1728334248173,-754.75,0.00038356,120]
[340018061,1728334248184,-500.0,0.00038356,120]
[340018063,1728334248193,-150.0,0.00038356,120]
[340018065,1728334248203,-524.38570387,0.00038356,120]
[340018067,1728334248213,-500.0,0.00038356,2]
[340018069,1728334248222,-500.0,0.00038356,120]
[340018071,1728334248231,-500.0,0.00038356,120]
[340018073,1728334248240,-500.0,0.00038356,120]
[340018075,1728334248249,-539.66186414,0.00038356,120]
[340018077,1728334248259,-500.0,0.00038356,120]
[340018079,1728334248268,-818.47,0.00038356,120]
[340018081,1728334248278,-500.0,0.00038356,120]
[340018083,1728334248288,-500.0,0.00038356,120]
[340018085,1728334248299,-500.0,0.00038356,120]
[340018087,1728334248309,-500.0,0.00038356,120]
[340018089,1728334248319,-550.91,0.00038356,120]
[340018091,1728334248330,-500.0,0.00038356,120]
[340018093,1728334248339,-500.0,0.00038356,120]
[340018095,1728334248348,-500.0,0.00038356,120]
[340018097,1728334248359,-500.0,0.00038356,120]
[340018099,1728334248368,-500.0,0.00038356,120]
[340018101,1728334248377,-500.0,0.00038356,120]
[340018103,1728334248386,-500.0,0.00038356,120]
[340018105,1728334248396,-500.0,0.00038356,120]
[340018107,1728334248405,-625.1,0.00038356,120]
[340018109,1728334248414,-500.19820107,0.00038356,120]
[340018110,1728334248423,-914.39,0.00038356,120]
[340018113,1728334248433,-500.0,0.00038356,120]
[340018115,1728334248443,-500.0,0.00038356,120]
[340018116,1728334248452,-500.0,0.00038356,120]
[340018118,1728334248461,-500.0,0.00038356,120]
[340018120,1728334248470,-500.0,0.00038356,120]
[340018122,1728334248480,-500.0,0.00038356,120]
[340018124,1728334248489,-500.0,0.00038356,120]
[340018126,1728334248499,-500.0,0.00038356,120]
[340018127,1728334248509,-500.0,0.00038356,120]
[340018128,1728334248518,-500.0,0.00038356,120]
[340018129,1728334248527,-500.0,0.00038356,120]
[340018130,1728334248536,-500.0,0.00038356,120]
[340018131,1728334248546,-500.0,0.00038356,120]
[340018132,1728334248556,-500.0,0.00038356,120]
[340018133,1728334248565,-500.0,0.00038356,120]
[340018134,1728334248575,-261.38509189,0.00038356,120]
[340018135,1728334248585,-500.0,0.00038356,120]
[340018136,1728334248594,-500.0,0.00038356,120]
[340018137,1728334248604,-500.0,0.00038356,120]
[340018138,1728334248613,-498.72366913,0.00038356,120]
[340018140,1728334248623,-500.0,0.00038356,120]
[340018142,1728334248632,-308.40846251,0.00038356,120]
[340018144,1728334248642,-500.0,0.00038356,120]
[340018146,1728334248652,-500.0,0.00038356,120]